bitfinex/quotes_BTCUSD_20251120
["timestamp","ask_amount","ask_price","bid_price","bid_amount"]
[1763640274419,0.01087216,91978.0,91976.0,0.21744721]
[1763640274632,0.01087216,91978.0,91977.0,0.00368]
[1763640274824,0.01087216,91978.0,91977.0,0.0415]
[1763640275055,0.01087192,91980.0,91977.0,0.01877]
[1763640275632,0.2184433,91978.0,91977.0,0.00368]
[1763640276119,0.2174433,91978.0,91977.0,0.00368]
[1763640277350,0.21744566,91977.0,91976.0,2.16791462]
[1763640277560,0.01087204,91979.0,91976.0,2.16791462]
[1763640277810,0.01087192,91980.0,91977.0,0.01496]
[1763640277973,0.001,91978.0,91977.0,0.01496]
[1763640278204,0.2184433,91978.0,91977.0,0.01496]
[1763640278599,0.2174433,91978.0,91977.0,0.01496]
[1763640278802,0.2174433,91978.0,91977.0,0.00368]
[1763640279382,0.22831493,91980.0,91977.0,0.00368]
[1763640279578,0.01087192,91980.0,91977.0,1.08835101]
[1763640279785,0.2184433,91978.0,91977.0,1.08835101]
[1763640281716,0.2174433,91978.0,91977.0,1.08467101]
[1763640281921,0.2494133,91978.0,91977.0,1.08467101]
[1763640282349,0.32186224,91978.0,91977.0,1.08467101]
[1763640282953,0.32286224,91978.0,91977.0,1.08467101]
[1763640283484,0.32186224,91978.0,91977.0,1.08467101]
[1763640283796,0.32286224,91978.0,91977.0,1.08467101]
[1763640284257,0.64586224,91978.0,91977.0,1.08467101]
[1763640284739,0.67387727,91978.0,91977.0,1.08467101]
[1763640286351,0.70653315,91978.0,91977.0,1.08467101]
[1763640287252,0.66198812,91978.0,91977.0,1.08467101]
[1763640287614,0.33898812,91978.0,91977.0,1.08467101]
[1763640288538,0.02134645,91978.0,91977.0,1.31720667]
[1763640288780,0.02134645,91978.0,91977.0,1.33993667]
[1763640289003,0.001,91978.0,91977.0,1.33993667]
[1763640289229,0.21774897,91981.0,91978.0,0.21744284]
[1763640289463,0.23779613,91980.0,91978.0,0.00368]
[1763640289676,0.21743944,91980.0,91978.0,0.00368]
[1763640290115,0.21744093,91979.0,91978.0,0.00368]
[1763640292823,0.21844093,91979.0,91978.0,0.00368]
[1763640295072,0.001,91979.0,91978.0,0.2211233]
[1763640295278,0.001,91979.0,91978.0,0.00368]
[1763640295705,0.21844093,91979.0,91978.0,0.00368]
[1763640295906,0.001,91979.0,91978.0,0.00368]
[1763640296288,0.2736412,91979.0,91978.0,0.00368]
[1763640296827,0.22676093,91979.0,91978.0,0.00368]
[1763640300159,0.001,91979.0,91978.0,0.2589433]
[1763640300920,0.001,91979.0,91978.0,0.01877]
[1763640301130,0.21844093,91979.0,91978.0,0.01444608]
[1763640301315,0.2174433,91978.0,91977.0,1.08467101]
[1763640301570,0.26979357,91978.0,91977.0,1.08467101]
[1763640301782,0.35078663,91978.0,91977.0,1.08467101]
[1763640301964,0.26979357,91978.0,91977.0,1.08467101]
[1763640302162,0.25326357,91978.0,91977.0,1.08467101]
[1763640302382,0.26979357,91978.0,91977.0,1.08467101]
[1763640302805,0.27079357,91978.0,91977.0,1.08467101]
[1763640303228,0.26979357,91978.0,91977.0,1.08467101]
[1763640303668,0.42358438,91978.0,91977.0,1.08467101]
[1763640304084,0.32289606,91978.0,91977.0,1.08467101]
[1763640306989,0.64589606,91978.0,91977.0,1.08467101]
[1763640307194,0.62936606,91978.0,91977.0,1.08467101]
[1763640307802,0.23882357,91978.0,91977.0,1.08467101]
[1763640308006,0.23882357,91978.0,91977.0,1.09989101]
[1763640308216,0.23882357,91978.0,91977.0,1.12260101]
[1763640308583,0.23782357,91978.0,91977.0,1.08467101]
[1763640309014,0.2184433,91978.0,91977.0,1.08467101]
[1763640309216,0.02138815,91978.0,91977.0,1.08467101]
[1763640309393,0.23783145,91978.0,91977.0,1.08467101]
[1763640309795,0.02138815,91978.0,91977.0,1.08467101]
[1763640310207,0.23883145,91978.0,91977.0,1.08467101]
[1763640311512,0.23883145,91978.0,91976.0,1.08324361]
[1763640311513,0.21744566,91977.0,91976.0,1.08324361]
[1763640311705,0.23783381,91977.0,91976.0,2.16791462]
[1763640312118,0.25429381,91977.0,91976.0,2.16791462]
[1763640312314,0.27082381,91977.0,91976.0,2.16791462]
[1763640312676,0.27182381,91977.0,91976.0,2.16791462]
[1763640313080,0.69244978,91977.0,91976.0,2.16791462]
[1763640313284,0.74455227,91977.0,91976.0,2.16791462]
[1763640313879,0.67958218,91977.0,91976.0,2.16791462]
[1763640314344,0.67858218,91977.0,91976.0,2.16791462]
[1763640314746,0.67958218,91977.0,91976.0,2.16791462]
[1763640315169,0.67858218,91977.0,91976.0,2.16791462]
[1763640315581,0.67958218,91977.0,91976.0,2.16791462]
[1763640315990,0.68058218,91977.0,91976.0,2.16791462]
[1763640319389,0.66405218,91977.0,91976.0,2.16791462]
[1763640319609,0.78974712,91977.0,91976.0,2.16791462]
[1763640319806,0.79994232,91977.0,91976.0,1.08324361]
[1763640320017,0.80362232,91977.0,91976.0,1.08324361]
[1763640320445,0.80362232,91977.0,91940.0,0.0004]
[1763640320446,0.59259544,91957.0,91956.0,1.08490288]
[1763640320651,0.66754505,91957.0,91956.0,2.16814649]
[1763640320858,0.68407505,91957.0,91956.0,2.16814649]
[1763640321262,0.71674242,91957.0,91956.0,2.16814649]
[1763640321886,0.71774242,91957.0,91956.0,2.16814649]
[1763640322501,0.82690736,91957.0,91956.0,2.16814649]
[1763640323172,0.82790736,91957.0,91956.0,2.16814649]
[1763640323502,0.83808222,91957.0,91956.0,2.16814649]
[1763640324148,0.83808222,91957.0,91956.0,1.08347548]
[1763640324527,0.72891728,91957.0,91956.0,1.08347548]
[1763640324667,0.71874242,91957.0,91956.0,1.08347548]
[1763640324878,0.71774242,91957.0,91956.0,1.08347548]
[1763640325283,0.71974242,91957.0,91956.0,1.08347548]
[1763640325494,0.71874242,91957.0,91956.0,1.08347548]
[1763640325708,0.80478922,91957.0,91956.0,1.08347548]
[1763640325929,0.80678922,91957.0,91956.0,1.08347548]
[1763640326356,0.80472306,91957.0,91956.0,1.08347548]
[1763640326725,0.80572306,91957.0,91956.0,1.08347548]
[1763640327079,0.71967626,91957.0,91956.0,1.08323548]
[1763640327282,0.71767626,91957.0,91956.0,1.08323548]
[1763640327649,0.71967626,91957.0,91956.0,1.08323548]
[1763640333223,0.59260964,91951.0,91950.0,1.08507101]
[1763640333418,0.73857657,91951.0,91950.0,1.08507101]
[1763640333642,0.75510657,91951.0,91950.0,2.16831462]
[1763640333889,0.78777589,91951.0,91950.0,2.16831462]
[1763640334293,0.67861095,91951.0,91950.0,2.16831462]
[1763640334504,0.68003183,91951.0,91950.0,2.16831462]
[1763640335598,0.68103183,91951.0,91950.0,2.16831462]
[1763640340652,0.68102837,91951.0,91950.0,2.16831462]
[1763640344414,0.68002837,91951.0,91950.0,2.16831462]
[1763640344625,0.78919331,91951.0,91950.0,2.16831462]
[1763640345260,0.80136692,91951.0,91950.0,2.16831462]
[1763640345677,0.80036692,91951.0,91950.0,2.16831462]
[1763640346255,0.80136692,91951.0,91950.0,2.16831462]
[1763640346921,0.69220198,91951.0,91950.0,2.16831462]
[1763640349198,0.71570024,91951.0,91950.0,2.16831462]
[1763640349998,0.71577944,91951.0,91950.0,2.16831462]
[1763640351699,0.71579855,91951.0,91950.0,2.16791462]
[1763640352823,0.71379855,91951.0,91950.0,2.16791462]
[1763640353026,0.71279855,91951.0,91950.0,2.16791462]
[1763640353246,0.71379855,91951.0,91950.0,2.16791462]
[1763640353449,0.71483485,91951.0,91950.0,2.16791462]
[1763640354044,0.71483485,91951.0,91950.0,1.08467101]
[1763640354403,0.71483485,91951.0,91950.0,2.16791462]
[1763640355465,0.75909652,91951.0,91950.0,2.16791462]
[1763640356072,0.7148354,91951.0,91950.0,2.16791462]
[1763640358784,0.6842081,91951.0,91950.0,2.16791462]
[1763640360907,0.29257561,91951.0,91950.0,2.16791462]
[1763640361118,0.25259735,91951.0,91950.0,2.16791462]
[1763640361326,0.2832264,91951.0,91950.0,2.16791462]
[1763640361552,0.5633474,91951.0,91950.0,2.16791462]
[1763640361770,0.55940803,91951.0,91950.0,2.16791462]
[1763640362153,0.55740803,91951.0,91950.0,2.16791462]
[1763640362390,0.66657297,91951.0,91950.0,2.16791462]
[1763640362591,0.68410297,91951.0,91950.0,2.16791462]
[1763640362970,0.66657297,91951.0,91950.0,2.16791462]
[1763640363205,0.57393803,91951.0,91950.0,2.16791462]
[1763640363407,0.57493803,91951.0,91950.0,2.16791462]
[1763640363614,0.00142088,91951.0,91948.0,0.00023191]
[1763640363818,0.21751188,91949.0,91948.0,2.16814653]
[1763640364460,0.21750951,91950.0,91948.0,2.16814653]
[1763640364665,0.00142088,91951.0,91948.0,2.18403653]
[1763640364774,0.21892817,91951.0,91948.0,2.19491224]
[1763640364981,0.21892817,91951.0,91948.0,2.41242557]
[1763640365197,0.23792235,91950.0,91948.0,2.41242557]
[1763640365403,0.02041279,91949.0,91948.0,2.41242557]
[1763640365643,0.02041279,91949.0,91948.0,2.43584557]
[1763640366846,0.02041279,91949.0,91948.0,2.20745653]
[1763640367172,0.02041279,91949.0,91948.0,2.42497077]
[1763640368229,0.00042088,91951.0,91950.0,0.21750951]
[1763640368437,0.00042088,91951.0,91950.0,0.23339951]
[1763640368632,0.02080693,91951.0,91950.0,0.25681951]
[1763640368909,0.00042088,91951.0,91950.0,0.25681951]
[1763640369537,0.00142088,91951.0,91950.0,0.25681951]
[1763640369973,0.00042088,91951.0,91950.0,0.25681951]
[1763640372204,0.00042088,91951.0,91950.0,0.26049951]
[1763640372854,0.00042088,91951.0,91950.0,0.25681951]
[1763640373072,0.00042088,91951.0,91950.0,0.04299]
[1763640373366,0.00042088,91951.0,91950.0,0.26049951]
[1763640374722,0.00042088,91951.0,91950.0,0.04299]
[1763640376521,0.00042088,91951.0,91950.0,0.26049951]
[1763640378520,0.00042088,91951.0,91950.0,0.04299]
[1763640378887,0.00042088,91951.0,91950.0,0.26049951]
[1763640380338,0.00042088,91951.0,91950.0,0.04299]
[1763640381246,0.00042088,91951.0,91950.0,0.22118951]
[1763640381450,0.00042088,91951.0,91950.0,0.26049951]
[1763640381655,0.00042088,91951.0,91950.0,0.23707951]
[1763640381862,0.21751188,91949.0,91948.0,2.16814653]
[1763640382061,0.00042088,91951.0,91948.0,2.17182653]
[1763640382187,0.00042088,91951.0,91950.0,0.01589]
[1763640382832,0.21792803,91951.0,91950.0,0.03931]
[1763640383025,0.00042088,91951.0,91950.0,0.03931]
[1763640383443,0.00042088,91951.0,91950.0,0.25681951]
[1763640384011,0.00042088,91951.0,91950.0,0.03931]
[1763640384842,0.21792803,91951.0,91950.0,0.03931]
[1763640385443,0.00042088,91951.0,91950.0,0.03931]
[1763640385668,0.00042088,91951.0,91950.0,0.25681951]
[1763640386384,0.00042088,91951.0,91950.0,0.03931]
[1763640386552,0.21792803,91951.0,91950.0,0.03931]
[1763640387529,0.22880338,91951.0,91950.0,0.00368]
[1763640388541,0.00042088,91951.0,91950.0,0.01957]
[1763640388861,0.21792803,91951.0,91950.0,0.01957]
[1763640389282,0.00042088,91951.0,91950.0,0.01957]
[1763640389490,0.00042088,91951.0,91950.0,0.0432]
[1763640389692,0.21792803,91951.0,91950.0,0.0432]
[1763640391574,0.21792803,91951.0,91950.0,0.01957]
[1763640391808,0.21792803,91951.0,91950.0,0.01917]
[1763640392014,0.21792803,91951.0,91950.0,0.0428]
[1763640394924,0.00042088,91951.0,91950.0,0.0428]
[1763640395095,0.00042088,91951.0,91950.0,0.26030951]
[1763640401648,0.00042088,91951.0,91950.0,0.25662951]
[1763640401874,0.00042088,91951.0,91950.0,0.26030951]
[1763640403583,0.01087334,91968.0,91950.0,0.26030951]
[1763640403584,0.00115237,91980.0,91974.0,0.01087263]
[1763640403814,0.00115237,91980.0,91979.0,0.24050093]
[1763640404249,0.00115237,91980.0,91979.0,0.26305093]
[1763640404872,0.00215237,91980.0,91979.0,0.26305093]
[1763640405275,0.00115237,91980.0,91979.0,0.26305093]
[1763640405477,0.00115237,91980.0,91979.0,0.26405093]
[1763640406410,0.04896878,92019.0,91979.0,0.04661]
[1763640406600,0.45035768,92040.0,92018.0,0.02787]
[1763640406601,0.01086696,92022.0,92018.0,0.02787]
[1763640406803,0.0108672,92020.0,92018.0,2.17948462]
[1763640407032,0.0108672,92020.0,92019.0,0.00368]
[1763640407239,0.45035768,92030.0,92021.0,0.01086708]
[1763640407445,0.02030369,92029.0,92025.0,0.01086661]
[1763640407649,0.21731688,92032.0,92025.0,0.01086661]
[1763640407650,0.02030369,92028.0,92025.0,0.22819724]
[1763640407851,0.00133204,92026.0,92025.0,4.203e-05]
[1763640408061,0.02163573,92026.0,92025.0,4.203e-05]
[1763640408265,0.02161386,92026.0,92025.0,0.03889203]
[1763640408470,0.00133204,92026.0,92025.0,0.03889203]
[1763640408853,0.00133204,92026.0,92025.0,0.03859203]
[1763640409927,0.2173346,92024.0,92019.0,0.00368]
[1763640410134,0.001,92026.0,92022.0,0.01086696]
[1763640410336,0.001,92026.0,92025.0,0.0163]
[1763640410734,0.00133204,92026.0,92025.0,0.03885]
[1763640411297,0.02157105,92026.0,92025.0,0.03885]
[1763640411845,0.00133204,92026.0,92025.0,0.03885]
[1763640412986,0.00233204,92026.0,92025.0,0.03885]
[1763640413405,0.00233204,92026.0,92023.0,0.22820119]
[1763640413628,0.001,92026.0,92025.0,0.0163]
[1763640414227,0.01086543,92035.0,92030.0,0.01086602]
[1763640414228,0.22817524,92035.0,92030.0,0.01086602]
[1763640414433,0.22816943,92037.0,92034.0,0.0163]
[1763640414664,0.01086519,92037.0,92036.0,0.00965]
[1763640414959,0.02021078,92037.0,92036.0,0.00965]
[1763640415179,0.02021078,92037.0,92036.0,0.02595]
[1763640415801,0.02021078,92037.0,92036.0,0.00965]
[1763640416022,0.02021078,92037.0,92031.0,0.00368]
[1763640416023,0.21731335,92033.0,92031.0,0.00368]
[1763640416229,0.02021078,92032.0,92031.0,0.00368]
[1763640416443,0.21731807,92031.0,92030.0,2.16791462]
[1763640416658,0.27823885,92031.0,92030.0,2.16791462]
[1763640416869,0.37568741,92031.0,92030.0,2.16791462]
[1763640417335,0.27823885,92031.0,92030.0,2.16791462]
[1763640417958,0.27923885,92031.0,92030.0,2.16791462]
[1763640419201,0.27823885,92031.0,92030.0,2.16791462]
[1763640419403,0.2807156,92031.0,92030.0,2.16791462]
[1763640419598,0.65681809,92031.0,92030.0,2.16791462]
[1763640419798,0.76598303,92031.0,92030.0,2.16791462]
[1763640420406,0.65681809,92031.0,92030.0,2.16791462]
[1763640421174,0.65681464,92031.0,92030.0,2.16791462]
[1763640422030,0.60471215,92031.0,92030.0,2.16791462]
[1763640422475,0.60472236,92031.0,92030.0,2.16791462]
[1763640424971,0.65682485,92031.0,92030.0,2.16791462]
[1763640425175,0.65683981,92031.0,92030.0,2.16791462]
[1763640425554,0.63660731,92031.0,92030.0,2.16791462]
[1763640425858,0.65684645,92031.0,92030.0,2.16791462]
[1763640426066,0.63660731,92031.0,92030.0,2.16791462]
[1763640427237,0.66924674,92031.0,92030.0,2.16791462]
[1763640427454,0.77841168,92031.0,92030.0,2.16791462]
[1763640427627,0.77841168,92031.0,92030.0,1.08324361]
[1763640427862,0.59244418,92021.0,92020.0,1.08467101]
[1763640428052,0.61950418,92021.0,92020.0,2.16791462]
[1763640428368,0.64359418,92021.0,92020.0,2.16791462]
[1763640428956,0.67399921,92021.0,92020.0,2.16791462]
[1763640429311,0.78316415,92021.0,92020.0,2.16791462]
[1763640429533,0.78516415,92021.0,92020.0,2.16791462]
[1763640430164,0.78716415,92021.0,92020.0,2.16791462]
[1763640431372,0.81055741,92021.0,92020.0,2.16791462]
[1763640432136,0.70139247,92021.0,92020.0,1.08324361]
[1763640432491,0.67799921,92021.0,92020.0,1.08324361]
[1763640432691,0.70140282,92021.0,92020.0,1.08324361]
[1763640432912,0.67399921,92021.0,92020.0,1.08324361]
[1763640433286,0.67718653,92021.0,92020.0,1.08324361]
[1763640434081,0.78635147,92021.0,92020.0,1.08324361]
[1763640435872,0.67718653,92021.0,92020.0,1.08324361]
[1763640436511,0.66705134,92021.0,92020.0,1.08324361]
[1763640436754,0.67721494,92021.0,92020.0,1.08324361]
[1763640437178,0.67721494,92021.0,92020.0,2.16791462]
[1763640438064,0.70063541,92021.0,92020.0,2.16791462]
[1763640438269,0.80980035,92021.0,92020.0,2.16791462]
[1763640440335,0.80980035,92021.0,92020.0,1.08324361]
[1763640440560,0.84244557,92021.0,92020.0,1.08324361]
[1763640444838,0.73328063,92021.0,92020.0,1.08324361]
[1763640448798,0.76264047,92021.0,92020.0,1.08324361]
[1763640449002,0.76265569,92021.0,92020.0,1.08324361]
[1763640449422,0.73229585,92021.0,92020.0,1.08324361]
[1763640449628,0.73129585,92021.0,92020.0,1.08324361]
[1763640449829,0.84446079,92021.0,92020.0,1.08324361]
[1763640450033,0.76461485,92021.0,92020.0,1.08324361]
[1763640450814,0.73529585,92021.0,92020.0,1.08324361]
[1763640451440,0.73129585,92021.0,92020.0,1.08324361]
[1763640451634,0.73329585,92021.0,92020.0,1.08324361]
[1763640451831,0.73529585,92021.0,92020.0,1.08324361]
[1763640452080,0.76317904,92021.0,92020.0,1.08324361]
[1763640452749,0.73529585,92021.0,92020.0,1.08324361]
[1763640453104,0.73897585,92021.0,92020.0,1.08324361]
[1763640454529,0.73697585,92021.0,92020.0,1.08324361]
[1763640454733,0.73497585,92021.0,92020.0,1.08324361]
[1763640454900,0.73797585,92021.0,92020.0,1.08324361]
[1763640455096,0.70433063,92021.0,92020.0,1.08324361]
[1763640455393,0.70333063,92021.0,92020.0,1.08324361]
[1763640455853,0.70533063,92021.0,92020.0,1.08324361]
[1763640456218,0.70165063,92021.0,92020.0,1.08324361]
[1763640456653,0.69865063,92021.0,92020.0,1.08324361]
[1763640456855,0.67523016,92021.0,92020.0,1.08324361]
[1763640457054,0.69870863,92021.0,92020.0,1.08324361]
[1763640457413,0.69870863,92021.0,92019.0,4.204e-05]
[1763640457414,0.59244654,92020.0,92019.0,4.204e-05]
[1763640457579,0.68770254,92020.0,92019.0,4.204e-05]
[1763640457773,0.68770254,92020.0,92019.0,1.08328565]
[1763640458558,0.68870254,92020.0,92019.0,1.08328565]
[1763640458782,0.79786748,92020.0,92019.0,1.08328565]
[1763640459166,0.79986748,92020.0,92019.0,1.08328565]
[1763640459391,0.69070254,92020.0,92019.0,1.08328565]
[1763640459552,0.72334893,92020.0,92019.0,1.08328565]
[1763640462905,0.72450731,92020.0,92019.0,1.08328565]
[1763640466993,0.37254092,92020.0,92019.0,1.08328565]
[1763640467512,0.69554092,92020.0,92019.0,1.08328565]
[1763640467735,0.59245835,92015.0,92014.0,1.08467101]
[1763640467938,0.63949701,92015.0,92014.0,1.08471305]
[1763640468209,0.66422701,92015.0,92014.0,2.16795666]
[1763640468967,0.65504819,92015.0,92014.0,2.16795666]
[1763640469609,0.65604819,92015.0,92014.0,2.16795666]
[1763640470004,0.5792157,92015.0,92014.0,2.16795666]
[1763640470216,0.5626257,92015.0,92014.0,2.16795666]
[1763640470417,0.2396257,92015.0,92014.0,2.16795666]
[1763640470770,0.02226984,92015.0,92014.0,2.16795666]
[1763640471167,0.02126984,92015.0,92014.0,2.16795666]
[1763640471379,0.2376257,92015.0,92014.0,2.16795666]
[1763640471589,0.2386257,92015.0,92014.0,2.16795666]
[1763640471731,0.02226984,92015.0,92014.0,2.16795666]
[1763640471938,0.02226984,92015.0,92014.0,2.38531488]
[1763640473149,0.02328347,92015.0,92014.0,2.38531488]
[1763640475631,0.02328347,92015.0,92014.0,2.16795666]
[1763640475972,0.24063933,92015.0,92014.0,2.16795666]
[1763640477235,0.00301363,92015.0,92014.0,2.40056488]
[1763640477434,0.00301363,92015.0,92014.0,2.42776488]
[1763640477997,0.00101363,92015.0,92014.0,2.42776488]
[1763640481451,0.00101363,92015.0,92014.0,2.42876488]
[1763640481709,0.00101363,92015.0,92014.0,2.42776488]
[1763640481902,0.00101363,92015.0,92014.0,2.42408488]
[1763640482103,0.00101363,92015.0,92014.0,2.42876488]
[1763640485045,0.00101363,92015.0,92014.0,2.42508488]
[1763640485261,0.00101363,92015.0,92014.0,2.42876488]
[1763640486575,0.00101363,92015.0,92014.0,2.42776488]
[1763640486780,0.00101363,92015.0,92014.0,2.42976488]
[1763640490231,0.00101363,92015.0,92014.0,2.57716488]
[1763640493707,0.00101363,92015.0,92014.0,2.42608488]
[1763640494118,0.00101363,92015.0,92014.0,2.42976488]
[1763640494727,3.63e-06,92015.0,92014.0,2.42976488]
[1763640494907,0.0002,92050.0,92014.0,2.42976488]
[1763640494908,0.323,92049.0,92046.0,0.21728133]
[1763640495084,0.0202905,92048.0,92046.0,2.16791462]
[1763640495293,0.23850186,92047.0,92046.0,2.16791462]
[1763640495716,0.02122156,92047.0,92046.0,2.16791462]
[1763640496115,0.02164302,92047.0,92046.0,2.38519728]
[1763640496906,0.02164302,92047.0,92046.0,2.40084728]
[1763640497102,0.02164302,92047.0,92046.0,2.18356462]
[1763640497574,0.02264302,92047.0,92046.0,2.18356462]
[1763640498005,0.02264302,92047.0,92046.0,2.40084728]
[1763640498213,0.00234772,92047.0,92046.0,2.42387728]
[1763640498615,0.00234772,92047.0,92046.0,2.20659462]
[1763640498748,0.00234772,92047.0,92046.0,2.42387728]
[1763640498955,0.00134772,92047.0,92046.0,2.42387728]
[1763640499433,0.00134772,92047.0,92046.0,2.20659462]
[1763640499633,0.21862802,92047.0,92046.0,2.17259462]
[1763640500189,0.00134772,92047.0,92046.0,2.17359462]
[1763640500419,0.00134772,92047.0,92046.0,2.21127462]
[1763640500605,0.00134772,92047.0,92046.0,2.21027462]
[1763640500819,0.00134772,92047.0,92046.0,2.20759462]
[1763640501059,0.04012772,92047.0,92046.0,2.17259462]
[1763640501200,0.60071119,92047.0,92046.0,2.16891462]
[1763640501402,0.68544519,92047.0,92046.0,2.16891462]
[1763640502825,0.68544519,92047.0,92046.0,2.16791462]
[1763640503027,0.68644519,92047.0,92046.0,2.16791462]
[1763640503944,0.68744519,92047.0,92046.0,2.16791462]
[1763640505418,0.68747662,92047.0,92046.0,2.16791462]
[1763640505638,0.65484511,92047.0,92046.0,2.16791462]
[1763640507208,0.72221653,92047.0,92046.0,2.16791462]
[1763640507818,0.65484511,92047.0,92046.0,2.16791462]
[1763640508273,0.66502303,92047.0,92046.0,2.16791462]
[1763640509093,0.66504442,92047.0,92046.0,2.16791462]
[1763640509712,0.68850285,92047.0,92046.0,2.16791462]
[1763640514014,0.69218285,92047.0,92046.0,1.08324361]
[1763640514267,0.5924064,92037.0,92036.0,1.08467101]
[1763640514598,0.68297219,92037.0,92036.0,2.16791462]
[1763640514789,0.70676219,92037.0,92036.0,2.16791462]
[1763640514964,0.73021498,92037.0,92036.0,2.16791462]
[1763640515167,0.75489086,92037.0,92036.0,2.16791462]
[1763640515688,0.75589086,92037.0,92036.0,2.16791462]
[1763640516279,0.75689086,92037.0,92036.0,2.16791462]
[1763640516698,0.73221498,92037.0,92036.0,2.16791462]
[1763640517278,0.70876219,92037.0,92036.0,2.16791462]
[1763640517683,0.71076219,92037.0,92036.0,2.16791462]
[1763640518229,0.70876219,92037.0,92036.0,2.16791462]
[1763640518383,0.74140002,92037.0,92036.0,2.16791462]
[1763640518587,0.73022163,92037.0,92036.0,2.16791462]
[1763640519038,0.73122163,92037.0,92036.0,2.16791462]
[1763640519833,0.7318585,92037.0,92036.0,2.16791462]
[1763640520231,0.7241585,92037.0,92036.0,2.16791462]
[1763640522071,0.63395455,92037.0,92036.0,2.16791462]
[1763640527696,0.68603214,92037.0,92036.0,2.16791462]
[1763640528116,0.68603214,92037.0,92036.0,1.08324361]
[1763640528275,0.69619908,92037.0,92036.0,1.08324361]
[1763640528689,0.71962876,92037.0,92036.0,1.08324361]
[1763640529334,0.80020476,92037.0,92036.0,1.08324361]
[1763640529795,0.9093697,92037.0,92036.0,1.08324361]
[1763640530027,0.21732516,92028.0,92027.0,1.08467101]
[1763640530241,0.60162314,92028.0,92027.0,1.08467101]
[1763640530452,0.62541314,92028.0,92027.0,2.16791462]
[1763640531312,0.62741314,92028.0,92027.0,2.16791462]
[1763640531523,0.67951563,92028.0,92027.0,2.16791462]
[1763640531733,0.68151563,92028.0,92027.0,2.16791462]
[1763640533272,0.71415797,92028.0,92027.0,2.16791462]
[1763640533691,0.74285219,92028.0,92027.0,2.16791462]
[1763640533919,0.71415797,92028.0,92027.0,2.16791462]
[1763640535180,0.71415797,92028.0,92027.0,1.08324361]
[1763640535381,0.71453434,92028.0,92027.0,1.08324361]
[1763640540306,0.73798344,92028.0,92027.0,1.08324361]
[1763640541420,0.73430344,92028.0,92027.0,1.08324361]
[1763640541642,0.65875185,92028.0,92027.0,1.08324361]
[1763640541863,0.3776874,92028.0,92027.0,1.08324361]
[1763640542541,0.6986874,92028.0,92027.0,1.08324361]
[1763640542984,0.6996874,92028.0,92027.0,1.08324361]
[1763640543388,0.6976874,92028.0,92027.0,1.08324361]
[1763640543769,0.6986874,92028.0,92027.0,1.08324361]
[1763640545258,0.80785234,92028.0,92027.0,1.08324361]
[1763640545460,0.6986874,92028.0,92027.0,1.08324361]
[1763640547427,0.64658491,92028.0,92027.0,1.08324361]
[1763640548122,0.64558491,92028.0,92027.0,1.08324361]
[1763640548420,0.64458491,92028.0,92027.0,1.08324361]
[1763640548571,0.64558491,92028.0,92027.0,1.08324361]
[1763640549478,0.64658491,92028.0,92027.0,1.08324361]
[1763640551581,0.6466177,92028.0,92027.0,1.08324361]
[1763640551805,0.6228277,92028.0,92027.0,1.08324361]
[1763640552025,0.3571202,92028.0,92027.0,1.08324361]
[1763640552262,0.57444536,92028.0,92027.0,1.08324361]
[1763640553026,0.57344536,92028.0,92027.0,1.08324361]
[1763640553423,0.61302536,92028.0,92027.0,1.08324361]
[1763640553644,0.61302343,92028.0,92027.0,1.08324361]
[1763640554275,0.61202343,92028.0,92027.0,1.08324361]
[1763640558170,0.70980643,92028.0,92027.0,1.08324361]
[1763640558552,0.61202343,92028.0,92027.0,1.08324361]
[1763640559111,0.61102343,92028.0,92027.0,1.08324361]
[1763640559510,0.61202343,92028.0,92027.0,1.08324361]
[1763640560077,0.21733933,92022.0,92021.0,0.00368]
[1763640560321,0.23304933,92022.0,92021.0,2.16791462]
[1763640560503,0.27627905,92022.0,92021.0,2.16791462]
[1763640561110,0.27727905,92022.0,92021.0,2.16791462]
[1763640562973,0.27627905,92022.0,92021.0,2.16791462]
[1763640563382,0.27728373,92022.0,92021.0,2.16791462]
[1763640564044,0.76055116,92022.0,92021.0,2.16791462]
[1763640564255,0.65138622,92022.0,92021.0,2.16791462]
[1763640564785,0.65238622,92022.0,92021.0,2.16791462]
[1763640568908,0.65238622,92022.0,92021.0,1.08467101]
[1763640569366,0.65238622,92022.0,92021.0,2.16791462]
[1763640571044,0.68502743,92022.0,92021.0,2.16791462]
[1763640572049,0.79419237,92022.0,92021.0,2.16791462]
[1763640572249,0.80438388,92022.0,92021.0,2.16791462]
[1763640573344,0.69421894,92022.0,92021.0,2.16791462]
[1763640573767,0.69521894,92022.0,92021.0,2.16791462]
[1763640573979,0.69621894,92022.0,92021.0,2.16791462]
[1763640577902,0.69622401,92022.0,92021.0,2.16791462]
[1763640578928,0.71968837,92022.0,92021.0,2.16791462]
[1763640579134,0.69622401,92022.0,92021.0,2.16791462]
[1763640579338,0.6860325,92022.0,92021.0,2.16791462]
[1763640579713,0.69621546,92022.0,92021.0,2.16791462]
[1763640580792,0.61106001,92022.0,92021.0,2.16791462]
[1763640581219,0.6011988,92022.0,92021.0,2.16791462]
[1763640581436,0.5627088,92022.0,92021.0,2.16791462]
[1763640581658,0.2387088,92022.0,92021.0,2.16791462]
[1763640581869,0.2377088,92022.0,92021.0,2.16791462]
[1763640582085,0.2614888,92022.0,92021.0,2.16791462]
[1763640582297,0.2768888,92022.0,92021.0,2.16791462]
[1763640582749,0.27688229,92022.0,92021.0,2.16791462]
[1763640582960,0.27588229,92022.0,92021.0,2.16791462]
[1763640583183,0.27688229,92022.0,92021.0,2.16791462]
[1763640583386,0.27788229,92022.0,92021.0,2.16791462]
[1763640588413,0.32998478,92022.0,92021.0,2.16791462]
[1763640590382,0.21736219,92013.0,92011.0,0.00368]
[1763640590583,0.21736219,92013.0,92011.0,2.17159462]
[1763640590945,0.01086791,92014.0,92011.0,2.18246288]
[1763640591238,0.22822841,92014.0,92011.0,2.18246288]
[1763640591414,0.22822841,92014.0,92011.0,2.17159462]
[1763640591610,0.001,92013.0,92011.0,2.17163666]
[1763640591815,0.21736295,92012.0,92011.0,2.17163666]
[1763640592581,0.21736295,92012.0,92011.0,2.16795666]
[1763640593689,0.23276295,92012.0,92011.0,2.16795666]
[1763640593879,0.25554295,92012.0,92011.0,2.16795666]
[1763640594739,0.25654295,92012.0,92011.0,2.16795666]
[1763640595354,0.23376295,92012.0,92011.0,2.16795666]
[1763640596380,0.25654295,92012.0,92011.0,2.16795666]
[1763640596827,0.001,92012.0,92011.0,2.16795666]
[1763640597030,0.001,92012.0,92011.0,2.38532197]
[1763640598671,0.001,92012.0,92011.0,2.16795666]
[1763640598879,0.21836295,92012.0,92011.0,2.16795666]
[1763640599486,0.24114295,92012.0,92011.0,2.16795666]
[1763640600759,0.25654295,92012.0,92011.0,2.16795666]
[1763640601168,0.38306001,92012.0,92011.0,2.16795666]
[1763640601606,0.41570413,92012.0,92011.0,2.16795666]
[1763640602007,0.41470413,92012.0,92011.0,2.16795666]
[1763640602420,0.73870413,92012.0,92011.0,2.16795666]
[1763640602620,0.73970413,92012.0,92011.0,2.16795666]